[Event "Titled Tuesday Blitz January 03 Early 2023"]
[White "Kobalia, Mikhail"]
[Black "Mekhane, Adam"]
[WhiteFideId "4119150"]
[BlackFideId "36050601"]
[WhiteElo "2578"]
[BlackElo "2280"]
[Result "1-0"]
[Round "01"]
[TimeControl "180+2"]
[Date "2023.01.03"]
[WhiteClock "0:01:13"]
[BlackClock "0:00:52"]

1. e4 {[%clk 0:02:53]}  c5 {[%clk 0:02:58]} 2. Nf3 {[%clk 0:02:52]}  e6 {[%clk 0:02:57]} 3. g3 {[%clk 0:02:51]}  Nc6 {[%clk 0:02:54]} 4. Bg2 {[%clk 0:02:51]}  g6 {[%clk 0:02:52]} 5. d4 {[%clk 0:02:50]}  cxd4 {[%clk 0:02:52]} 6. Nxd4 {[%clk 0:02:49]}  Nxd4 {[%clk 0:02:46]} 7. Qxd4 {[%clk 0:02:48]}  Qf6 {[%clk 0:02:38]} 8. e5 {[%clk 0:02:46]}  Qe7 {[%clk 0:02:38]} 9. Nc3 {[%clk 0:02:45]}  Bg7 {[%clk 0:02:37]} 10. Ne4 {[%clk 0:02:38]}  Nh6 {[%clk 0:02:35]} 11. Nd6+ {[%clk 0:02:23]}  Kf8 {[%clk 0:02:35]} 12. Bf4 {[%clk 0:02:08]}  Nf5 {[%clk 0:02:31]} 13. Nxf5 {[%clk 0:02:04]}  gxf5 {[%clk 0:02:28]} 14. O-O-O {[%clk 0:02:04]}  d5 {[%clk 0:02:25]} 15. exd6 {[%clk 0:01:57]}  Qd7 {[%clk 0:02:17]} 16. Be5 {[%clk 0:01:45]}  Bh6+ {[%clk 0:02:10]} 17. Kb1 {[%clk 0:01:44]}  Rg8 {[%clk 0:02:10]} 18. Rd3 {[%clk 0:01:41]}  Bg7 {[%clk 0:02:08]} 19. Rc3 {[%clk 0:01:38]}  Qd8 {[%clk 0:02:07]} 20. Rd1 {[%clk 0:01:32]}  f6 {[%clk 0:02:03]} 21. Bf4 {[%clk 0:01:31]}  e5 {[%clk 0:02:02]} 22. Qb4 {[%clk 0:01:31]}  Bd7 {[%clk 0:01:53]} 23. Be3 {[%clk 0:01:25]}  a5 {[%clk 0:01:27]} 24. Qb3 {[%clk 0:01:20]}  a4 {[%clk 0:01:25]} 25. Qb4 {[%clk 0:01:19]}  Rb8 {[%clk 0:01:17]} 26. Rc7 {[%clk 0:01:18]}  f4 {[%clk 0:01:08]} 27. Ba7 {[%clk 0:01:15]}  Bc6 {[%clk 0:00:52]} 28. Bxc6 {[%clk 0:01:13]} 1-0


[Site "https://www.chess.com"]

[Event "Titled Tuesday Blitz January 03 Early 2023"]
[White "Bryakin, Mikhail"]
[Black "Gonzalez, Francisco Silva"]
[WhiteFideId "4165314"]
[BlackFideId "1512285"]
[WhiteElo "2455"]
[BlackElo "2021"]
[Result "1-0"]
[Round "01"]
[TimeControl "180+2"]
[Date "2023.01.03"]
[WhiteClock "0:00:23"]
[BlackClock "0:01:34"]

1. e4 {[%clk 0:02:55]}  e5 {[%clk 0:02:59]} 2. d4 {[%clk 0:02:51]}  exd4 {[%clk 0:02:58]} 3. Qxd4 {[%clk 0:02:52]}  Nc6 {[%clk 0:02:57]} 4. Qd3 {[%clk 0:02:51]}  Nf6 {[%clk 0:02:58]} 5. Nc3 {[%clk 0:02:49]}  Bb4 {[%clk 0:02:57]} 6. Ne2 {[%clk 0:02:49]}  O-O {[%clk 0:02:54]} 7. Bg5 {[%clk 0:02:49]}  h6 {[%clk 0:02:52]} 8. Bh4 {[%clk 0:02:48]}  Ne5 {[%clk 0:02:51]} 9. Qg3 {[%clk 0:02:42]}  Ng6 {[%clk 0:02:50]} 10. Bxf6 {[%clk 0:02:38]}  Qxf6 {[%clk 0:02:49]} 11. O-O-O {[%clk 0:02:35]}  c6 {[%clk 0:02:48]} 12. a3 {[%clk 0:02:25]}  Bc5 {[%clk 0:02:45]} 13. f4 {[%clk 0:02:20]}  d6 {[%clk 0:02:44]} 14. Qf3 {[%clk 0:02:11]}  Nh4 {[%clk 0:02:41]} 15. Qg3 {[%clk 0:02:10]}  Re8 {[%clk 0:02:36]} 16. h3 {[%clk 0:02:04]}  b5 {[%clk 0:02:34]} 17. e5 {[%clk 0:01:56]}  dxe5 {[%clk 0:02:33]} 18. Ne4 {[%clk 0:01:56]}  Qe7 {[%clk 0:02:27]} 19. Nxc5 {[%clk 0:01:57]}  Nf5 {[%clk 0:02:27]} 20. Qc3 {[%clk 0:01:55]}  a5 {[%clk 0:02:22]} 21. g4 {[%clk 0:01:37]}  b4 {[%clk 0:02:22]} 22. Qb3 {[%clk 0:01:13]}  Qxc5 {[%clk 0:02:21]} 23. gxf5 {[%clk 0:01:12]}  Bxf5 {[%clk 0:02:20]} 24. fxe5 {[%clk 0:01:08]}  Rxe5 {[%clk 0:02:15]} 25. Nd4 {[%clk 0:01:08]}  Be4 {[%clk 0:02:14]} 26. Rh2 {[%clk 0:01:05]}  Bd5 {[%clk 0:02:14]} 27. Qg3 {[%clk 0:01:00]}  Rg5 {[%clk 0:02:10]} 28. Qe3 {[%clk 0:01:00]}  bxa3 {[%clk 0:02:07]} 29. Qxa3 {[%clk 0:01:00]}  Qb6 {[%clk 0:02:07]} 30. Rhd2 {[%clk 0:00:51]}  Re8 {[%clk 0:02:04]} 31. Bd3 {[%clk 0:00:50]}  c5 {[%clk 0:01:59]} 32. Nf5 {[%clk 0:00:38]}  c4 {[%clk 0:01:55]} 33. Nd6 {[%clk 0:00:38]}  Re4 {[%clk 0:01:48]} 34. Bxe4 {[%clk 0:00:32]}  c3 {[%clk 0:01:46]} 35. Qxc3 {[%clk 0:00:31]}  Be6 {[%clk 0:01:44]} 36. Nc4 {[%clk 0:00:26]}  Bxc4 {[%clk 0:01:40]} 37. Qxc4 {[%clk 0:00:25]}  g6 {[%clk 0:01:39]} 38. Rd8+ {[%clk 0:00:24]}  Kg7 {[%clk 0:01:39]} 39. Qc3+ {[%clk 0:00:24]}  Re5 {[%clk 0:01:34]} 40. Qxe5+ {[%clk 0:00:23]} 1-0


[Site "https://www.chess.com"]

[Event "Titled Tuesday Blitz January 03 Early 2023"]
[White "Murzin, Volodar"]
[Black "Rodrigues, Bruno Morado"]
[WhiteFideId "44155573"]
[BlackFideId "2115654"]
[WhiteElo "2604"]
[BlackElo "2033"]
[Result "0-1"]
[Round "01"]
[TimeControl "180+2"]
[Date "2023.01.03"]
[WhiteClock "0:00:29"]
[BlackClock "0:00:51"]

1. e4 {[%clk 0:02:05]}  c5 {[%clk 0:03:00]} 2. Nf3 {[%clk 0:02:05]}  Nc6 {[%clk 0:03:00]} 3. Bb5 {[%clk 0:02:04]}  e6 {[%clk 0:03:00]} 4. O-O {[%clk 0:02:03]}  Nge7 {[%clk 0:03:00]} 5. Re1 {[%clk 0:02:03]}  a6 {[%clk 0:03:00]} 6. Bf1 {[%clk 0:02:03]}  d5 {[%clk 0:03:00]} 7. d3 {[%clk 0:02:04]}  dxe4 {[%clk 0:02:54]} 8. dxe4 {[%clk 0:02:05]}  Qxd1 {[%clk 0:02:54]} 9. Rxd1 {[%clk 0:02:06]}  Ng6 {[%clk 0:02:54]} 10. a4 {[%clk 0:01:54]}  Be7 {[%clk 0:02:53]} 11. Na3 {[%clk 0:01:53]}  Bf6 {[%clk 0:02:39]} 12. Nc4 {[%clk 0:01:47]}  O-O {[%clk 0:02:38]} 13. c3 {[%clk 0:01:44]}  Rb8 {[%clk 0:02:37]} 14. Nb6 {[%clk 0:01:41]}  Bd8 {[%clk 0:02:23]} 15. Nxc8 {[%clk 0:01:27]}  Rxc8 {[%clk 0:02:23]} 16. Be3 {[%clk 0:01:28]}  Nce5 {[%clk 0:02:11]} 17. Nxe5 {[%clk 0:01:25]}  Nxe5 {[%clk 0:02:12]} 18. h3 {[%clk 0:01:25]}  g5 {[%clk 0:01:59]} 19. g3 {[%clk 0:01:19]}  Bf6 {[%clk 0:01:43]} 20. f4 {[%clk 0:01:13]}  gxf4 {[%clk 0:01:44]} 21. gxf4 {[%clk 0:01:14]}  Ng6 {[%clk 0:01:44]} 22. e5 {[%clk 0:01:13]}  Bh4 {[%clk 0:01:44]} 23. Rd7 {[%clk 0:01:08]}  b5 {[%clk 0:01:30]} 24. axb5 {[%clk 0:01:07]}  axb5 {[%clk 0:01:31]} 25. Bxb5 {[%clk 0:01:07]}  Bg3 {[%clk 0:01:32]} 26. Rf1 {[%clk 0:01:06]}  Rb8 {[%clk 0:01:26]} 27. c4 {[%clk 0:01:06]}  Rfd8 {[%clk 0:01:24]} 28. Rxd8+ {[%clk 0:01:04]}  Rxd8 {[%clk 0:01:25]} 29. Kg2 {[%clk 0:01:04]}  Rd3 {[%clk 0:01:21]} 30. Kxg3 {[%clk 0:00:53]}  Rxe3+ {[%clk 0:01:20]} 31. Rf3 {[%clk 0:00:54]}  Re2 {[%clk 0:01:20]} 32. b3 {[%clk 0:00:51]}  Ne7 {[%clk 0:01:17]} 33. Rd3 {[%clk 0:00:45]}  Nf5+ {[%clk 0:01:16]} 34. Kf3 {[%clk 0:00:41]}  Rb2 {[%clk 0:01:16]} 35. Ba4 {[%clk 0:00:35]}  Rh2 {[%clk 0:01:10]} 36. Rd8+ {[%clk 0:00:30]}  Kg7 {[%clk 0:01:09]} 37. Rc8 {[%clk 0:00:31]}  Rxh3+ {[%clk 0:01:06]} 38. Kg2 {[%clk 0:00:30]}  Rg3+ {[%clk 0:00:57]} 39. Kh2 {[%clk 0:00:29]}  h5 {[%clk 0:00:51]} 40. Rxc5 {[%clk 0:00:29]}  h4 {[%clk 0:00:51]} 0-1


[Site "https://www.chess.com"]

[Event "Titled Tuesday Blitz January 03 Early 2023"]
[White "Le Ruyet, Leopold"]
[Black "Galchenko, Matvey"]
[WhiteFideId "645923"]
[BlackFideId "24175480"]
[WhiteElo "2245"]
[BlackElo "2438"]
[Result "0-1"]
[Round "01"]
[TimeControl "180+2"]
[Date "2023.01.03"]
[WhiteClock "0:00:21"]
[BlackClock "0:00:20"]

1. e4 {[%clk 0:03:00]}  e6 {[%clk 0:02:56]} 2. d4 {[%clk 0:03:00]}  d5 {[%clk 0:02:56]} 3. e5 {[%clk 0:03:01]}  c5 {[%clk 0:02:56]} 4. c3 {[%clk 0:03:02]}  Qb6 {[%clk 0:02:56]} 5. Nf3 {[%clk 0:03:01]}  Nc6 {[%clk 0:02:57]} 6. Bd3 {[%clk 0:03:00]}  cxd4 {[%clk 0:02:57]} 7. O-O {[%clk 0:03:00]}  Bd7 {[%clk 0:02:57]} 8. Nbd2 {[%clk 0:02:54]}  dxc3 {[%clk 0:02:42]} 9. bxc3 {[%clk 0:02:54]}  Na5 {[%clk 0:02:35]} 10. Rb1 {[%clk 0:02:52]}  Qc7 {[%clk 0:02:35]} 11. Nb3 {[%clk 0:02:52]}  Nxb3 {[%clk 0:02:30]} 12. Qxb3 {[%clk 0:02:49]}  b6 {[%clk 0:02:26]} 13. Bf4 {[%clk 0:02:46]}  Ne7 {[%clk 0:02:26]} 14. Nd4 {[%clk 0:02:43]}  Ng6 {[%clk 0:01:56]} 15. Nb5 {[%clk 0:02:35]}  Qc5 {[%clk 0:01:51]} 16. Be3 {[%clk 0:02:30]}  Qc6 {[%clk 0:01:51]} 17. f4 {[%clk 0:02:30]}  Bc5 {[%clk 0:01:51]} 18. Nd4 {[%clk 0:02:23]}  Qc7 {[%clk 0:01:47]} 19. f5 {[%clk 0:02:05]}  Nxe5 {[%clk 0:01:18]} 20. fxe6 {[%clk 0:02:04]}  fxe6 {[%clk 0:01:18]} 21. Bb5 {[%clk 0:01:54]}  Bxb5 {[%clk 0:01:06]} 22. Qxb5+ {[%clk 0:01:50]}  Qd7 {[%clk 0:01:07]} 23. Qe2 {[%clk 0:01:47]}  Nf7 {[%clk 0:00:57]} 24. c4 {[%clk 0:01:20]}  O-O {[%clk 0:00:55]} 25. cxd5 {[%clk 0:01:20]}  Qxd5 {[%clk 0:00:46]} 26. Rbd1 {[%clk 0:01:19]}  Qe5 {[%clk 0:00:45]} 27. Nc2 {[%clk 0:00:48]}  Nd6 {[%clk 0:00:37]} 28. Rfe1 {[%clk 0:00:45]}  Nf5 {[%clk 0:00:29]} 29. Bxc5 {[%clk 0:00:44]}  Qxc5+ {[%clk 0:00:30]} 30. Kh1 {[%clk 0:00:44]}  Rf6 {[%clk 0:00:29]} 31. Qg4 {[%clk 0:00:32]}  Qxc2 {[%clk 0:00:26]} 32. Rd7 {[%clk 0:00:30]}  Raf8 {[%clk 0:00:22]} 33. h3 {[%clk 0:00:27]}  Rg6 {[%clk 0:00:21]} 34. Qf3 {[%clk 0:00:21]}  Ng3+ {[%clk 0:00:20]} 0-1


[Site "https://www.chess.com"]

[Event "Titled Tuesday Blitz January 03 Early 2023"]
[White "Kopylov, Alexander A."]
[Black "Krienke, Makaio"]
[WhiteFideId "4164857"]
[BlackFideId "2038854"]
[WhiteElo "2397"]
[BlackElo "2115"]
[Result "1-0"]
[Round "01"]
[TimeControl "180+2"]
[Date "2023.01.03"]
[WhiteClock "0:01:54"]
[BlackClock "0:00:44"]

1. e4 {[%clk 0:02:59]}  e5 {[%clk 0:02:59]} 2. Nf3 {[%clk 0:02:59]}  Nc6 {[%clk 0:02:59]} 3. Nc3 {[%clk 0:03:00]}  Bc5 {[%clk 0:02:59]} 4. Nxe5 {[%clk 0:02:59]}  Nxe5 {[%clk 0:02:58]} 5. d4 {[%clk 0:03:00]}  Bd6 {[%clk 0:02:56]} 6. dxe5 {[%clk 0:03:00]}  Bxe5 {[%clk 0:02:57]} 7. Bd3 {[%clk 0:03:01]}  Nf6 {[%clk 0:02:57]} 8. O-O {[%clk 0:03:00]}  O-O {[%clk 0:02:55]} 9. Ne2 {[%clk 0:03:00]}  c6 {[%clk 0:02:30]} 10. f4 {[%clk 0:02:59]}  Bc7 {[%clk 0:02:29]} 11. e5 {[%clk 0:02:56]}  Nd5 {[%clk 0:02:25]} 12. Ng3 {[%clk 0:02:56]}  d6 {[%clk 0:02:23]} 13. Qh5 {[%clk 0:02:38]}  g6 {[%clk 0:02:23]} 14. Qh6 {[%clk 0:02:38]}  dxe5 {[%clk 0:02:20]} 15. f5 {[%clk 0:02:39]}  Nf4 {[%clk 0:02:08]} 16. Be3 {[%clk 0:02:23]}  Bb6 {[%clk 0:01:52]} 17. Rae1 {[%clk 0:02:13]}  Bxe3+ {[%clk 0:01:52]} 18. Rxe3 {[%clk 0:02:13]}  Qb6 {[%clk 0:01:52]} 19. f6 {[%clk 0:02:10]}  Ne6 {[%clk 0:01:22]} 20. Nf5 {[%clk 0:02:09]}  gxf5 {[%clk 0:01:14]} 21. Bxf5 {[%clk 0:02:10]}  Qxe3+ {[%clk 0:01:04]} 22. Qxe3 {[%clk 0:02:11]}  Nf4 {[%clk 0:00:52]} 23. Rxf4 {[%clk 0:02:02]}  exf4 {[%clk 0:00:48]} 24. Qxf4 {[%clk 0:01:55]}  Kh8 {[%clk 0:00:44]} 25. Qh6 {[%clk 0:01:54]} 1-0


[Site "https://www.chess.com"]

[Event "Titled Tuesday Blitz January 03 Early 2023"]
[White "Donchenko, Alexander"]
[Black "Vysochin, Spartak"]
[WhiteFideId "24603295"]
[BlackFideId "14103516"]
[WhiteElo "2669"]
[BlackElo "2512"]
[Result "1-0"]
[Round "01"]
[TimeControl "180+2"]
[Date "2023.01.03"]
[WhiteClock "0:01:43"]
[BlackClock "0:00:58"]

1. Nf3 {[%clk 0:02:55]}  d5 {[%clk 0:02:58]} 2. d4 {[%clk 0:02:49]}  Nf6 {[%clk 0:02:57]} 3. Bf4 {[%clk 0:02:49]}  c5 {[%clk 0:02:57]} 4. e3 {[%clk 0:02:46]}  Nc6 {[%clk 0:02:54]} 5. Nbd2 {[%clk 0:02:46]}  Bg4 {[%clk 0:02:52]} 6. c3 {[%clk 0:02:46]}  e6 {[%clk 0:02:52]} 7. h3 {[%clk 0:02:46]}  Bh5 {[%clk 0:02:52]} 8. Qa4 {[%clk 0:02:45]}  Nd7 {[%clk 0:02:45]} 9. Bb5 {[%clk 0:02:39]}  Qb6 {[%clk 0:02:45]} 10. Ne5 {[%clk 0:02:38]}  Ndxe5 {[%clk 0:02:43]} 11. Bxe5 {[%clk 0:02:38]}  a6 {[%clk 0:02:36]} 12. Bxc6+ {[%clk 0:02:21]}  Qxc6 {[%clk 0:02:35]} 13. Qxc6+ {[%clk 0:02:20]}  bxc6 {[%clk 0:02:35]} 14. Nb3 {[%clk 0:02:16]}  f6 {[%clk 0:02:32]} 15. Bh2 {[%clk 0:02:14]}  c4 {[%clk 0:02:32]} 16. Na5 {[%clk 0:02:14]}  Kd7 {[%clk 0:02:32]} 17. b3 {[%clk 0:02:13]}  cxb3 {[%clk 0:02:21]} 18. axb3 {[%clk 0:02:14]}  c5 {[%clk 0:02:19]} 19. Kd2 {[%clk 0:02:11]}  Be7 {[%clk 0:02:18]} 20. Nb7 {[%clk 0:02:07]}  cxd4 {[%clk 0:02:05]} 21. exd4 {[%clk 0:02:07]}  Rhc8 {[%clk 0:01:53]} 22. Ra5 {[%clk 0:02:07]}  Ra7 {[%clk 0:01:45]} 23. Nc5+ {[%clk 0:02:05]}  Bxc5 {[%clk 0:01:45]} 24. dxc5 {[%clk 0:02:06]}  e5 {[%clk 0:01:44]} 25. Rha1 {[%clk 0:02:05]}  Rc6 {[%clk 0:01:42]} 26. b4 {[%clk 0:02:03]}  g5 {[%clk 0:01:40]} 27. b5 {[%clk 0:01:57]}  Rxc5 {[%clk 0:01:39]} 28. b6 {[%clk 0:01:57]}  Rxa5 {[%clk 0:01:21]} 29. bxa7 {[%clk 0:01:57]}  Rxa1 {[%clk 0:01:22]} 30. a8=Q {[%clk 0:01:57]}  Ra2+ {[%clk 0:01:23]} 31. Kc1 {[%clk 0:01:56]}  Bf7 {[%clk 0:01:19]} 32. Kb1 {[%clk 0:01:53]}  Rd2 {[%clk 0:01:03]} 33. Qxa6 {[%clk 0:01:52]}  Bg6+ {[%clk 0:01:01]} 34. Kc1 {[%clk 0:01:45]}  Rc2+ {[%clk 0:01:01]} 35. Kd1 {[%clk 0:01:46]}  Rxc3 {[%clk 0:01:01]} 36. Qxf6 {[%clk 0:01:43]}  Rd3+ {[%clk 0:00:58]} 37. Ke2 {[%clk 0:01:43]} 1-0


[Site "https://www.chess.com"]

[Event "Titled Tuesday Blitz January 03 Early 2023"]
[White "Madaminov, Mukhiddin"]
[Black "Sadovsky, Artem"]
[WhiteFideId "14210703"]
[BlackFideId "4155840"]
[WhiteElo "2422"]
[BlackElo "2276"]
[Result "1-0"]
[Round "01"]
[TimeControl "180+2"]
[Date "2023.01.03"]
[WhiteClock "0:01:43"]
[BlackClock "0:00:01"]

1. d4 {[%clk 0:03:00]}  f5 {[%clk 0:02:53]} 2. Bg5 {[%clk 0:02:59]}  g6 {[%clk 0:02:52]} 3. e3 {[%clk 0:02:58]}  Bg7 {[%clk 0:02:52]} 4. c4 {[%clk 0:02:57]}  Nf6 {[%clk 0:02:52]} 5. Nc3 {[%clk 0:02:58]}  O-O {[%clk 0:02:52]} 6. h4 {[%clk 0:02:56]}  h6 {[%clk 0:02:46]} 7. Bxf6 {[%clk 0:02:48]}  Bxf6 {[%clk 0:02:47]} 8. g3 {[%clk 0:02:48]}  d6 {[%clk 0:02:43]} 9. Bg2 {[%clk 0:02:48]}  Nc6 {[%clk 0:02:43]} 10. Nge2 {[%clk 0:02:44]}  e5 {[%clk 0:02:42]} 11. Qd2 {[%clk 0:02:42]}  Bg7 {[%clk 0:02:39]} 12. O-O-O {[%clk 0:02:42]}  Qe7 {[%clk 0:02:25]} 13. Kb1 {[%clk 0:02:38]}  Kh8 {[%clk 0:02:20]} 14. Rc1 {[%clk 0:02:37]}  Qf7 {[%clk 0:02:14]} 15. Nd5 {[%clk 0:02:36]}  Be6 {[%clk 0:01:59]} 16. Rhd1 {[%clk 0:02:35]}  Rac8 {[%clk 0:01:58]} 17. Qc2 {[%clk 0:02:29]}  a6 {[%clk 0:01:49]} 18. a3 {[%clk 0:02:27]}  Rfe8 {[%clk 0:01:34]} 19. Qb3 {[%clk 0:02:16]}  Na5 {[%clk 0:01:18]} 20. Qb4 {[%clk 0:02:16]}  Nxc4 {[%clk 0:01:14]} 21. Qxc4 {[%clk 0:02:07]}  c6 {[%clk 0:01:14]} 22. Nec3 {[%clk 0:02:07]}  cxd5 {[%clk 0:01:10]} 23. Qb4 {[%clk 0:02:07]}  exd4 {[%clk 0:00:52]} 24. exd4 {[%clk 0:02:07]}  Rc4 {[%clk 0:00:52]} 25. Qxd6 {[%clk 0:02:08]}  Bxd4 {[%clk 0:00:44]} 26. Nxd5 {[%clk 0:02:08]}  Rxc1+ {[%clk 0:00:42]} 27. Rxc1 {[%clk 0:02:09]}  Qd7 {[%clk 0:00:21]} 28. Qf4 {[%clk 0:01:56]}  Bg7 {[%clk 0:00:18]} 29. Rc7 {[%clk 0:01:55]}  Qb5 {[%clk 0:00:15]} 30. Nf6 {[%clk 0:01:43]}  Bxf6 {[%clk 0:00:03]} 31. Qxh6+ {[%clk 0:01:43]}  Kg8 {[%clk 0:00:03]} 32. Qxg6+ {[%clk 0:01:43]}  Kf8 {[%clk 0:00:01]} 33. Qxf6+ {[%clk 0:01:43]} 1-0


[Site "https://www.chess.com"]

[Event "Titled Tuesday Blitz January 03 Early 2023"]
[White "Legenia, Artem"]
[Black "Costachi, Mihnea"]
[WhiteFideId "14136945"]
[BlackFideId "1217518"]
[WhiteElo "2092"]
[BlackElo "2476"]
[Result "0-1"]
[Round "01"]
[TimeControl "180+2"]
[Date "2023.01.03"]
[WhiteClock "0:00:17"]
[BlackClock "0:01:03"]

1. e4 {[%clk 0:02:51]}  c5 {[%clk 0:02:57]} 2. Nf3 {[%clk 0:02:39]}  d6 {[%clk 0:02:55]} 3. Bb5+ {[%clk 0:02:36]}  Bd7 {[%clk 0:02:54]} 4. Bxd7+ {[%clk 0:02:36]}  Nxd7 {[%clk 0:02:54]} 5. O-O {[%clk 0:02:37]}  g6 {[%clk 0:02:54]} 6. d4 {[%clk 0:02:35]}  Bg7 {[%clk 0:02:54]} 7. Nc3 {[%clk 0:02:28]}  cxd4 {[%clk 0:02:51]} 8. Nxd4 {[%clk 0:02:27]}  Ngf6 {[%clk 0:02:51]} 9. Re1 {[%clk 0:02:27]}  O-O {[%clk 0:02:51]} 10. b3 {[%clk 0:02:19]}  Qa5 {[%clk 0:02:45]} 11. Bb2 {[%clk 0:02:19]}  Rac8 {[%clk 0:02:44]} 12. Nd5 {[%clk 0:02:09]}  Nxd5 {[%clk 0:02:41]} 13. exd5 {[%clk 0:02:09]}  Qxd5 {[%clk 0:02:35]} 14. Rxe7 {[%clk 0:02:09]}  Nc5 {[%clk 0:02:14]} 15. c4 {[%clk 0:02:01]}  Qg5 {[%clk 0:02:12]} 16. Qe2 {[%clk 0:01:50]}  Be5 {[%clk 0:02:02]} 17. Rxe5 {[%clk 0:00:37]}  Qxe5 {[%clk 0:01:54]} 18. Qxe5 {[%clk 0:00:37]}  dxe5 {[%clk 0:01:54]} 19. Nb5 {[%clk 0:00:37]}  Nd3 {[%clk 0:01:49]} 20. Ba3 {[%clk 0:00:36]}  Rfd8 {[%clk 0:01:40]} 21. Rd1 {[%clk 0:00:36]}  Nf4 {[%clk 0:01:31]} 22. Nd6 {[%clk 0:00:34]}  Rc7 {[%clk 0:01:25]} 23. g3 {[%clk 0:00:34]}  Ne2+ {[%clk 0:01:22]} 24. Kg2 {[%clk 0:00:33]}  Nd4 {[%clk 0:01:19]} 25. Rd3 {[%clk 0:00:26]}  a6 {[%clk 0:01:18]} 26. Ne4 {[%clk 0:00:18]}  Kg7 {[%clk 0:01:13]} 27. Bb2 {[%clk 0:00:18]}  f5 {[%clk 0:01:05]} 28. Nd2 {[%clk 0:00:17]}  Rcd7 {[%clk 0:01:03]} 0-1


[Site "https://www.chess.com"]

[Event "Titled Tuesday Blitz January 03 Early 2023"]
[White "Mahdavi, Reza"]
[Black "reevecanada"]
[WhiteFideId "12595926"]
[WhiteElo "2339"]
[BlackElo "2477"]
[Result "1-0"]
[Round "01"]
[TimeControl "180+2"]
[Date "2023.01.03"]
[WhiteClock "0:00:36"]
[BlackClock "0:01:55"]

1. d4 {[%clk 0:02:37]}  Nf6 {[%clk 0:02:58]} 2. c4 {[%clk 0:02:37]}  g6 {[%clk 0:02:58]} 3. Nc3 {[%clk 0:02:35]}  d5 {[%clk 0:02:58]} 4. Nf3 {[%clk 0:02:35]}  Bg7 {[%clk 0:02:57]} 5. Qb3 {[%clk 0:02:36]}  c6 {[%clk 0:02:56]} 6. e3 {[%clk 0:02:19]}  O-O {[%clk 0:02:54]} 7. Be2 {[%clk 0:02:15]}  e6 {[%clk 0:02:53]} 8. O-O {[%clk 0:02:13]}  a5 {[%clk 0:02:52]} 9. a4 {[%clk 0:02:01]}  Na6 {[%clk 0:02:51]} 10. Bd2 {[%clk 0:01:45]}  Re8 {[%clk 0:02:46]} 11. Rac1 {[%clk 0:01:42]}  Nd7 {[%clk 0:02:43]} 12. c5 {[%clk 0:01:31]}  Rb8 {[%clk 0:02:41]} 13. Na2 {[%clk 0:01:22]}  e5 {[%clk 0:02:33]} 14. dxe5 {[%clk 0:01:10]}  Naxc5 {[%clk 0:02:31]} 15. Qa3 {[%clk 0:01:09]}  Ne4 {[%clk 0:02:29]} 16. Be1 {[%clk 0:00:58]}  Nxe5 {[%clk 0:02:27]} 17. b4 {[%clk 0:00:58]}  axb4 {[%clk 0:02:23]} 18. Nxb4 {[%clk 0:00:59]}  Bg4 {[%clk 0:02:21]} 19. Nd3 {[%clk 0:00:52]}  Nxf3+ {[%clk 0:02:15]} 20. gxf3 {[%clk 0:00:51]}  Bh3 {[%clk 0:02:13]} 21. Nf4 {[%clk 0:00:38]}  Bxf1 {[%clk 0:02:13]} 22. Bxf1 {[%clk 0:00:39]}  Ng5 {[%clk 0:02:11]} 23. Kg2 {[%clk 0:00:38]}  Ne6 {[%clk 0:02:11]} 24. Nxe6 {[%clk 0:00:37]}  Rxe6 {[%clk 0:02:11]} 25. f4 {[%clk 0:00:37]}  Qa5 {[%clk 0:02:06]} 26. Bxa5 {[%clk 0:00:37]}  Ra8 {[%clk 0:02:03]} 27. Bc3 {[%clk 0:00:36]}  Bf8 {[%clk 0:02:02]} 28. Bb4 {[%clk 0:00:35]}  Bg7 {[%clk 0:02:02]} 29. Qb3 {[%clk 0:00:35]}  Re4 {[%clk 0:02:02]} 30. Bd3 {[%clk 0:00:36]}  Ree8 {[%clk 0:02:01]} 31. Bc3 {[%clk 0:00:36]}  Bf8 {[%clk 0:02:00]} 32. Qxb7 {[%clk 0:00:36]}  Rxa4 {[%clk 0:01:56]} 33. Qxc6 {[%clk 0:00:36]}  Raa8 {[%clk 0:01:56]} 34. Qf6 {[%clk 0:00:35]}  d4 {[%clk 0:01:55]} 35. Bxd4 {[%clk 0:00:35]}  Bg7 {[%clk 0:01:55]} 36. Qxg7# {[%clk 0:00:36]} 1-0


[Site "https://www.chess.com"]